Cogmind - Beta 16 *** ADVENTURER MODE // 2025.12.31 @ 05:51:39 Player: SuDmit Result: Destroyed by 81-6PJ(R) with Subdweller Machine Gun Performance ------------- Evolutions (0) 0 Regions Visited (3) 600 Robots Destroyed (17) 85 Value Destroyed (531) 531 Prototype IDs (15) 300 Alien Tech Used (0) 0 Bonus (0) 0 TOTAL SCORE: 1516 Bonus ------- None Cogmind --------- Core Integrity 0/250 Matter 290/300 Energy 80/100 System Corruption 0% Temperature Cool (0) Movement Walking (120) Location -10/Subcaves Parts ------- > --- POWER (1) -------- (None) > --- PROPULSION (2) --- Carbon-fiber Leg > --- UTILITY (2) ------ Sensor Array Signal Interpreter > --- WEAPON (2) ------- Subdweller Machine Gun Mining Claw > --- INVENTORY (5) ---- Scrap Suit Improved Terrain Scanner Scrap Shield Peak State ------------ > --- POWER ------------ Light Ion Engine > --- PROPULSION ------- Wheel Wheel > --- UTILITY ---------- Sensor Array Signal Interpreter > --- WEAPON ----------- Assault Rifle Rocket Launcher > --- INVENTORY -------- Scrap Suit Improved Terrain Scanner Medium Laser Mining Claw [Rating: 9] Favorites ----------- Power Light Ion Engine Engine Light Ion Engine Propulsion Wheel Leg Aluminum Leg Wheel Wheel Flight Unit Flight Unit Utility Signal Interpreter Device Sensor Array Processor Signal Interpreter Weapon Assault Rifle Energy Gun Medium Laser Ballistic Gun Assault Rifle Launcher Rocket Launcher Slashing Weapon Mining Claw Build | -11 -10 -10 -10 ------- Run | Yrd Mat Min Sub Slots Evolved . | . . . . Power . | . . . . Propulsion . | . . . . Utility . | . . . . Weapon . | . . . . Parts Attached 20 | 5 8 4 3 Power 4 | 2 1 1 . Engine 4 | 2 1 1 . Core . | . . . . Reactor . | . . . . Propulsion 7 | 1 3 2 1 Treads . | . . . . Leg 2 | 1 . . 1 Wheel 2 | . . 2 . Hover . | . . . . Flight 3 | . 3 . . Utility 3 | . 3 . . Device 2 | . 2 . . Storage . | . . . . Processor 1 | . 1 . . Hackware . | . . . . Protection . | . . . . Artifact . | . . . . Weapon 6 | 2 1 1 2 Energy Gun 2 | 1 . . 1 Energy Cannon . | . . . . Ballistic Gun 2 | 1 . . 1 Ballistic Cannon . | . . . . Launcher 1 | . . 1 . Special Weapon . | . . . . Impact Weapon . | . . . . Slashing Weapon 1 | . 1 . . Piercing Weapon . | . . . . Special Melee Weapon . | . . . . Unidentified Prototypes . | . . . . Parts Lost 8 | . 1 3 4 Power 1 | . . . 1 Propulsion 5 | . 1 2 2 Utility . | . . . . Weapon 2 | . . 1 1 Highest Loss Streak 4 | . 1 2 4 To Critical Strikes . | . . . . Average Backups 1 | . . 3 3 Power . | . . . . Propulsion . | . . . . Utility . | . . 1 2 Weapon . | . . 1 . Tool/Special . | . . . . Unused Backups 3 | . . . 3 Power . | . . . . Propulsion . | . . . . Utility 3 | . . . 3 Weapon . | . . . . Tool/Special . | . . . . Average Slot Usage (%) 82 | . 69 95 92 Engine 13 | . 13 13 11 Leg 3 | . 6 . 1 Wheel 11 | . . 20 24 Flight 9 | . 16 5 . Device 9 | . 4 14 14 Processor 7 | . 1 14 14 Energy Gun 8 | . 12 2 11 Ballistic Gun 9 | . 13 10 . Launcher 3 | . . 10 1 Slashing Weapon 4 | . 1 2 12 Peak Build Rating 9 | 4 7 9 9 Average Rating 6 | 3 4 7 8 On Entrance 5 | . 4 7 9 Avg Prop Armor Cover (%) 4 | . 4 . . Naked Turns . | . . . . Heaviest Build 10 | 7 8 10 10 Greatest Support 20 | 10 10 20 20 Greatest Overweight (x) 2 | 2 1 1 . Average Overweight (x) . | . . . . Largest Inventory Capacity 5 | 5 5 5 5 Average Capacity 5 | 5 5 5 5 Most Carried 5 | . 3 5 5 Average Carried 2 | . . 3 4 Final Capacity 5 | 5 5 5 5 Final Carried 5 | . 2 4 5 Class Distribution -------------------- 100% | Mutant Dominant Class ---------------- Mutant | -10/Materials Mutant | -10/Mines Mutant | -10/Subcaves Resources | -11 -10 -10 -10 ----------- Run | Yrd Mat Min Sub Matter Collected 650 | 249 200 167 34 Remotely . | . . . . Salvage Created 553 | . 263 170 120 Parts 35 | . 12 11 12 Haulers Intercepted . | . . . . Recyclers Shooed . | . . . . Parts Field Recycled . | . . . . Retrieved Matter . | . . . . Parts Self-Destructed . | . . . . Prevented . | . . . . Parts Restored . | . . . . Kills | -11 -10 -10 -10 ------- Run | Yrd Mat Min Sub Combat Hostiles Destroyed 15 | . 8 4 3 Melee 2 | . . . 2 Guns 10 | . 8 1 1 AOE 3 | . . 3 . Classes Destroyed 5 | . 2 2 1 Tunneler 1 | . . 1 . Recycler 1 | . . 1 . Swarmer 3 | . 3 . . Grunt 9 | . 5 4 . Subdweller 3 | . . . 3 Best Kill Streak 4 | . 3 4 3 Combat Bots Only 3 | . 3 2 3 Max Kills in Single Turn 2 | . 1 2 1 Gunslinging . | . . . . Exploded 1 | . . 1 . Melee 1 | . . . 1 Uniques/NPCs Destroyed . | . . . . Combat | -11 -10 -10 -10 -------- Run | Yrd Mat Min Sub Hostile Shots Fired 80 | . 28 12 40 Missed 25 | . 8 3 14 Hits 55 | . 20 9 26 Projectile 55 | . 20 9 26 Critical Strikes 1 | . . . 1 Damage Taken 710 | . 175 121 414 Core 258 | . 47 38 173 Absorbed by Shields . | . . . . Ignored by Resistances 212 | . 57 36 119 Core Remaining (%) 100 | 100 . . . Volleys Fired 31 | . 18 10 3 Largest 2 | . 2 2 1 Hottest 70 | . 70 53 60 Shots Fired 56 | . 36 17 3 Gun 49 | . 36 10 3 Cannon . | . . . . Launcher 7 | . . 7 . Special . | . . . . Kinetic 25 | . 18 7 . Thermal 24 | . 18 3 3 Explosive 7 | . . 7 . Electromagnetic . | . . . . Robot Hit Streak 13 | . 13 10 10 Robot Miss Streak 2 | . 2 1 . Penetration Max . | . . . . Secondary Targets 1 | . 1 . . Max Gunslinging Chain 1 | . 1 . . Shots Hit Robots 46 | . 25 9 12 Core Hits 27 | . 14 8 5 Critical Kills . | . . . . Critical Parts Destroyed . | . . . . Critical Strikes 1 | . 1 . . Burn 1 | . 1 . . Melee Attacks 10 | . 1 . 9 Impact . | . . . . Slashing 10 | . 1 . 9 Piercing . | . . . . Sneak Attacks . | . . . . Combat Hostiles . | . . . . Follow-up Attacks . | . . . . Damage Inflicted 1052 | . 324 450 278 Guns 471 | . 324 79 68 Cannons . | . . . . Explosions 368 | . . 368 . Melee 210 | . . . 210 Ramming 3 | . . 3 . Kinetic 219 | . 182 37 . Thermal 252 | . 142 42 68 Explosive 368 | . . 368 . Electromagnetic . | . . . . Impact . | . . . . Slashing 210 | . . . 210 Piercing . | . . . . Highest Corruption . | . . . . Average Corruption . | . . . . Corruption Purged . | . . . . Corruption Blocked . | . . . . Overload Shots . | . . . . Overflow Damage 18 | . . 18 . Projectiles . | . . . . Explosions 18 | . . 18 . Melee . | . . . . Knockbacks . | . . . . Impact . | . . . . Kinetic . | . . . . Secondary . | . . . . Self-Inflicted Damage 24 | . . 24 . Shots 1 | . . 1 . Rammed 1 | . . 1 . Targets Rammed 1 | . . 1 . Kicked . | . . . . Crushed . | . . . . Highest Temperature 166 | . 166 42 . Average Temperature 45 | . 54 14 . Received Heat Transfer 174 | . 105 69 . Siege Activations . | . . . . Martial Activations . | . . . . Shielding Activations . | . . . . Robots Disrupted . | . . . . Combat Hostiles . | . . . . Robots Corrupted . | . . . . Combat Hostiles . | . . . . Parts Fried . | . . . . Impact Corruptions . | . . . . Robots Melted . | . . . . Combat Hostiles . | . . . . Parts Melted 2 | . 2 . . Heat Transferred 667 | . 481 111 75 Parts Sabotaged . | . . . . Parts Stolen . | . . . . Parts Stripped . | . . . . Power Chain Reactions . | . . . . Alert | -11 -10 -10 -10 ------- Run | Yrd Mat Min Sub Maximum Alert Level 1 | . 1 . . Low Security (%) 94 | 100 89 100 . Level 1 5 | . 10 . . Level 2 . | . . . . Level 3 . | . . . . Level 4 . | . . . . Level 5 . | . . . . High Security . | . . . . Max Security . | . . . . Peak Influence 230 | . 230 108 . Initial 68 | . . 68 . Average 65 | . 77 60 . Influence Increases 542 | . 386 156 . Destroy 0b10 Robot/C 240 | . 160 80 . Destroy 0b10 Robot/NC 10 | . . 10 . Destroy Leader 50 | . 30 20 . Allied During Kill 3 | . . 3 . Successful Hack 37 | . 37 . . Select Force Hacks 30 | . 30 . . Disable Machine 9 | . 9 . . Destroy Structure 43 | . . 43 . Lose Combat Pursuer 120 | . 120 . . Influence Decreases 542 | . 177 331 34 Entered New Map 162 | . . 141 21 Time Decay 340 | . 167 160 13 Lost Part 40 | . 10 30 . Squads Dispatched 1 | . 1 . . Investigation 1 | . 1 . . Extermination . | . . . . Reinforcement . | . . . . Assault . | . . . . Garrison . | . . . . Intercept . | . . . . Searches Triggered . | . . . . Construction Impeded . | . . . . Haulers Reinforced . | . . . . Active Scanning Responses . | . . . . Cargo Convoy Interrupts . | . . . . Stealth | -11 -10 -10 -10 --------- Run | Yrd Mat Min Sub Distress Signals 1 | . 1 . . Communications Jammed . | . . . . Distress Signals . | . . . . Times Spotted 28 | . 17 4 7 Peak Tracking Total 6 | . 5 2 6 Tactical Retreats 4 | . 4 . . Traps | -11 -10 -10 -10 ------- Run | Yrd Mat Min Sub Traps Triggered 1 | . 1 . . Indirectly . | . . . . Trap Hack Attempts . | . . . . Triggered . | . . . . Disarmed . | . . . . Reprogrammed . | . . . . Reused . | . . . . Traps Extracted . | . . . . Installed . | . . . . Triggered . | . . . . Machines | -11 -10 -10 -10 ---------- Run | Yrd Mat Min Sub Machines Disabled 1 | . 1 . . Max in Single Turn 1 | . 1 . . Machines Repaired . | . . . . Machines Dismantled . | . . . . Machines Sabotaged . | . . . . Overloaded Fab Kills . | . . . . Hacking | -11 -10 -10 -10 --------- Run | Yrd Mat Min Sub Machines Accessed 10 | . 8 1 1 Terminals 8 | . 7 1 . Fabricators . | . . . . Repair Stations . | . . . . Recycling Units 1 | . 1 . . Scanalyzers . | . . . . Garrison Access . | . . . . Total Hacks 44 | . 33 2 9 Successful 31 | . 21 1 9 Failed 13 | . 12 1 . Catastrophic 2 | . 2 . . Database Lockouts . | . . . . Manual 29 | . 29 . . Terminals 34 | . 32 2 . Fabricators . | . . . . Repair Stations . | . . . . Recycling Units 1 | . 1 . . Scanalyzers . | . . . . Garrison Access . | . . . . Terminal Hacks 19 | . 9 1 9 Record 8 | . . . 8 Robot Analysis 4 | . 4 . . Prototype ID Bank 2 | . 2 . . Branch Access Points 1 | . 1 . . Terminal Index 1 | . 1 . . Scanalyzer Index 1 | . 1 . . Zone Layout 1 | . . 1 . Proto ID Catalog 1 | . . . 1 Fabricator Hacks . | . . . . Repair Station Hacks . | . . . . Recycling Unit Hacks . | . . . . Scanalyzer . | . . . . Garrison Access Hacks . | . . . . Unauthorized Hacks 12 | . 12 . . Terminals 11 | . 11 . . Track 2 | . 2 . . Botnet 7 | . 7 . . Disrupt 1 | . 1 . . Operators 1 | . 1 . . Fabricators . | . . . . Repair Stations . | . . . . Recycling Units 1 | . 1 . . Tunnel 1 | . 1 . . Scanalyzers . | . . . . Garrison Access . | . . . . Data Cores Recovered . | . . . . Used . | . . . . Hacking Detections 8 | . 7 1 . Full Trace Events 1 | . 1 . . Feedback Events . | . . . . Feedback Blocked . | . . . . Robot Schematics Acquired . | . . . . Robots Built . | . . . . Authchips . | . . . . Time . | . . . . Total Robot Build Rating . | . . . . Part Schematics Acquired . | . . . . Parts Built . | . . . . Authchips . | . . . . Time . | . . . . Total Part Build Rating . | . . . . Part Studies Acquired . | . . . . Parts Repaired . | . . . . Time . | . . . . Parts Recycled . | . . . . Recycled Matter . | . . . . Retrieved Matter . | . . . . Retrieved Components . | . . . . Parts Scanalyzed . | . . . . Part Schematics Acquired . | . . . . Parts Damaged . | . . . . Bothacking | -11 -10 -10 -10 ------------ Run | Yrd Mat Min Sub Used RIF Installer . | . . . . Robots Hacked . | . . . . Non-combat . | . . . . Combat . | . . . . Robot Hacks Applied . | . . . . Relay Couplers Released . | . . . . Fabnet Peak Effective % . | . . . . Robots Rewired . | . . . . Allies Hacked . | . . . . Hacks Repelled . | . . . . Allies | -11 -10 -10 -10 -------- Run | Yrd Mat Min Sub Total Allies 2 | . . 2 . Largest Group 2 | . . 2 2 Highest-Rated Group 42 | . . 42 42 Highest-Rated Ally 31 | . . 31 31 Total Orders . | . . . . Ally Attacks 6 | . . 1 5 Total Damage 60 | . . . 60 Kills . | . . . . Allies Corrupted . | . . . . Allies Melted . | . . . . Intel | -11 -10 -10 -10 ------- Run | Yrd Mat Min Sub Active Infowar (turns) 685 | . 153 325 207 Sensors 570 | . 38 325 207 Seismic 115 | . 115 . . Robot Analysis Total 4 | . 4 . . Derelict Logs Recovered 2 | . . 2 . Drone Launches . | . . . . Drone Recoveries . | . . . . Exploration | -11 -10 -10 -10 ------------- Run | Yrd Mat Min Sub Turns Passed 1074 | 58 484 325 207 Spaces Moved 1154 | 42 583 390 139 Core 32 | 18 . 14 . Treads . | . . . . Legs 151 | 24 122 . 5 Wheels 383 | . . 249 134 Hover . | . . . . Flight 588 | . 461 127 . Fastest Speed 37 | 50 37 37 80 Average Speed 63 | 111 55 65 81 Slowest Speed 150 | 150 130 117 120 Overloaded Moves . | . . . . Propulsion Burnouts . | . . . . Robots Hopped 3 | . 3 . . Potential Cave-ins . | . . . . Cave-ins Triggered . | . . . . Exploration Rate (%) 41 | 4 69 85 7 Regions Visited 3 Branch Regions 2 Pre-discovered Areas 1 | . 1 . . Known Exits Taken 2 | . 1 1 . Unknown Exits Taken 1 | 1 . . . Scrap Searched 3 | . . 1 2 Spaces Dug . | . . . . Terrain Destroyed 69 | . . 69 . Melee . | . . . . Projectile . | . . . . AOE 69 | . . 69 . Terrain Rammed . | . . . . Walls Destroyed . | . . . . Machines Disabled . | . . . . Actions | -11 -10 -10 -10 --------- Run | Yrd Mat Min Sub Total 1403 | 50 698 443 212 Wait 165 | 4 81 26 54 Move 1145 | 41 576 389 139 Hop 3 | . 3 . . Pick Up 5 | . 1 3 1 Fast Attach 15 | 4 6 3 2 Attach 8 | . 4 3 1 Detach 7 | . 3 3 1 Swap 10 | 1 5 3 1 Drop 3 | . . 2 1 Fire 31 | . 18 10 3 Melee 10 | . 1 . 9 Ram 1 | . . 1 . Kick . | . . . . Crush . | . . . . Escape Stasis . | . . . . Rewire . | . . . . Trap . | . . . . Miscellaneous . | . . . . Route ------- -11/Scrapyard -10/Materials (discovered 4 exits: *Mat x3 / *Min) -10/Mines (discovered 3 exits: *Mat x2 / *Sub) -10/Subcaves History --------- Turn | Location | Event 15 | -11/Scrapyard | Discovered new exit (range 16) 59 | -11/Scrapyard | Entered Materials 208 | -10/Materials | Discovered new exit (range 4) 313 | -10/Materials | Discovered new exit (range 3) 321 | -10/Materials | Build established: Mutant 372 | -10/Materials | Identified exit to Mines 463 | -10/Materials | Discovered new exit (range 11) 533 | -10/Materials | Identified exit to Materials 543 | -10/Materials | Entered Mines 580 | -10/Mines | Received a Rocket Launcher from a helpful Derelict 608 | -10/Mines | Discovered exit to Materials (range 14) 701 | -10/Mines | Learned location of 1 exit from Materials 759 | -10/Mines | Found a Scrap Suit stashed away for nefarious purposes 761 | -10/Mines | Found Scrap Suit 812 | -10/Mines | Discovered exit to Materials (range 17) 848 | -10/Mines | Discovered new exit (range 6) 852 | -10/Mines | Identified exit to Subcaves 868 | -10/Mines | Entered Subcaves 868 | -10/Subcaves | Accompanied by 2 allies 869 | -10/Subcaves | Shifting Twisted Machinery released Barrage Gun 873 | -10/Subcaves | Led the pair of lost Derelicts to an unsafe place 885 | -10/Subcaves | Shifting Twisted Machinery released Scrap Shield 968 | -10/Subcaves | Visited 4L-MR0's lab 997 | -10/Subcaves | Ambushed by swarm of Subdwellers 1048 | -10/Subcaves | Core integrity fell below 50% 1062 | -10/Subcaves | Core integrity fell below 20% 1068 | -10/Subcaves | Lost 3 allies 1074 | -10/Subcaves | Lost 4 parts (1p2n1w) 1075 | -10/Subcaves | Destroyed by 81-6PJ(R) with Subdweller Machine Gun Last Messages --------------- 01026_ 28-EJI(h) suffers critical hit (Destroy). 01030_ 28-EJI(h) destroyed. 01030_ Acquired 10 matter. 01034_ Lgt. Ion Engine destroyed. 01037_ 4V-BWF(R) destroyed. 01037_ FQ-0GF(z) destroyed. 01038_ Sub. Laser destroyed. 01040_ Wheel destroyed. 01041_ Subatomizers dissect the Mak. System Shield. 01042_ KE-OID(R) affixes Scrap Shield Fragment to Scrap Shield. 01043_ Wheel destroyed. 01043_ Acquired Carbon-fiber Leg. 01045_ Acquired 10 matter. 01053_ Machine disabled. 01055_ Subatomizers dissect the Mak. System Shield. 01056_ KE-OID(R) destroyed. 01062_ DB-4UA(R) destroyed. 01069_ Subatomizers dissect the Imp. Heat Sink. 01072_ 81-6PJ(R) affixes Scrap Shield Fragment to Scrap Shield. 01075_ Acquired Sub. Machine Gun. Map ----- +----------------------------------------------------+ | ?????????????????????????????????????????????????? | | ?????????????????????????????????????????????????? | | ?????????????????????????????????????????????????? | | ?????????????????????????????????????????????????? | | ?????????????????????????????????????????????????? | | ?????????????????????????????????????????????????? | | ?????????????????????????????????????????????????? | | ?????????????????????????????????????????????????? | | ?????????????????????????????????????????????????? | | ?????????????????????????????????????????????????? | | ?????????????????????????????????????????????????? | | ?????????????????????????????????????????????????? | | ?????????????????????????????????????????????????? | | ?????????????????????????????????????????????????? | | ?????????????????????????????????????? "?????????? | | ??????????????????????????????????????"""????????? | | ?????????????????????????????????????? "!??????##? | | ?????????????#############???????????? " #??### #? | | ?????????????# "#""" "" "#????????????#" ###" #? | | ?????????????#*" "X" x"#????????????# "" #? | | ?????????????### !#####???????????#"" " #?? | | ???????????????# *%=&%R#???????????###""" ##?? | | ???????????????#########*!%#?????????????# [" ##?? | | ????????????# ###???#####%R#?????????????## #?? | | ????????????# "####;<%%]R#??????????????# #?? | | ?????????????#" ""R[!@<#??????????????## #?? | | ?????????????#" ## " "![ ##??????????????# #?? | | ????????????????#< ##< <##???????????????## ##?? | | ??????????????###" "########??????????????# #??? | | ?????????###### " ### ##???????###??## ###? | | ?????????# ######### #### #? | | ????????# ## # ]#? | | ??????# ## ### ### #? | | ??????# #### ## ##?# #? | | ??????# ## ##??# # #### ##? | | ??????## ??# ##???# ##?? | | ?????????? ##????# ##??? | | ???????? ### #?????# ## # # #####???? | | ??????? #??# ?????### ### ###???????? | | ??????? ???## ?????? #####?????????? | | ????????# ?????### ????? ##?????????????? | | ????????###?????????#????## ## ## ??????????????? | | ??????????????????????????###?###?##?????????????? | | ?????????????????????????????????????????????????? | | ?????????????????????????????????????????????????? | | ?????????????????????????????????????????????????? | | ?????????????????????????????????????????????????? | | ?????????????????????????????????????????????????? | | ?????????????????????????????????????????????????? | | ?????????????????????????????????????????????????? | +----------------------------------------------------+ Best States ------------- Heat Dissipation 25 Energy Generation 10 Energy Capacity 125 Matter Stores 300 Matter Capacity 300 Sight Range 16 Robot Scan Range 14 Terrain Scan Density 10 Resistance: KI 20 Resistance: TH 20 Resistance: EX 20 Resistance: EM 20 Resistance: I 20 Resistance: S 20 Resistance: P 20 Evasion (%) 62 Offensive Hacking 10 Item Schematics ----------------- None Robot Schematics ------------------ None Fabricated ------------ Nothing Repaired ---------- Nothing Studied --------- None Alien Tech Used ----------------- None Achievements -------------- Mistaken Identity Challenges ------------ None Game ------ Seed PulseBattleUnit Manual? 0 Play Time 00:23:28 Cumulative 216.6 hours Start 2025.12.31 @ 05:24:18 End 2025.12.31 @ 05:51:39 Sessions 1 Manual Loads 0 Difficulty Adventurer Special Mode None Game No. 56 Rogue 2 Adventurer 54 Explorer 0 Win Type - Total 2 Types 2/0/0/0/0/0/0/0/0/0 Lore% 39 Gallery% 59 Achievement% 41 Wizard Run 0 Options --------- Layout 0 ASCII 0 Keyboard 1 Movement Numpad Keybinds 1 Fullscreen 1 Font 24/Terminus Map View 76x50 Zoom Use 0% Tactical HUD 1 Map Filters NONE Filters NONE Steam 1 RUN: 0f9ae770-60bc-4d91-9efe-a02b28bff486